bitfinex/quotes_BTCUSD_20220115
["timestamp","ask_amount","ask_price","bid_price","bid_amount"]
[1642261308592,8.595e-05,43253.0,43246.0,0.58631081]
[1642261308793,8.595e-05,43253.0,43247.0,0.265161]
[1642261309723,0.00074076,43252.0,43249.0,0.283879]
[1642261309923,0.00074076,43252.0,43250.0,0.265145]
[1642261310323,0.00074076,43252.0,43251.0,2.365138]
[1642261310524,8.595e-05,43253.0,43251.0,2.365138]
[1642261310727,0.00082672,43253.0,43252.0,2.11513]
[1642261311327,0.00082672,43253.0,43252.0,0.26513]
[1642261311727,8.595e-05,43253.0,43252.0,0.26513]
[1642261312127,8.595e-05,43253.0,43252.0,0.91513]
[1642261312328,8.595e-05,43253.0,43252.0,0.26513]
[1642261313131,8.595e-05,43253.0,43252.0,1.06513]
[1642261313329,8.595e-05,43253.0,43252.0,0.26513]
[1642261314172,8.595e-05,43253.0,43252.0,2.61513]
[1642261314473,8.595e-05,43253.0,43252.0,2.61638187]
[1642261314670,8.595e-05,43253.0,43252.0,2.61265852]
[1642261315274,8.595e-05,43253.0,43252.0,0.26265852]
[1642261316071,8.595e-05,43253.0,43252.0,1.11265852]
[1642261318164,8.595e-05,43253.0,43252.0,2.66265852]
[1642261318564,8.595e-05,43253.0,43252.0,2.76265852]
[1642261318765,8.595e-05,43253.0,43252.0,3.98865852]
[1642261318965,8.595e-05,43253.0,43252.0,2.76265852]
[1642261319967,8.595e-05,43253.0,43252.0,2.87824352]
[1642261320568,8.595e-05,43253.0,43252.0,2.76265852]
[1642261324377,8.595e-05,43253.0,43252.0,1.21265852]
[1642261324576,8.595e-05,43253.0,43252.0,1.11265852]
[1642261325024,8.595e-05,43253.0,43252.0,2.26265852]
[1642261328683,8.595e-05,43253.0,43252.0,1.11265852]
[1642261329082,8.595e-05,43253.0,43252.0,1.66265852]
[1642261329983,8.595e-05,43253.0,43252.0,2.21265852]
[1642261330584,8.595e-05,43253.0,43252.0,2.79697471]
[1642261330984,8.595e-05,43253.0,43252.0,2.85477271]
[1642261332221,8.595e-05,43253.0,43252.0,2.79697471]
[1642261332821,8.595e-05,43253.0,43252.0,2.21265852]
[1642261333223,8.595e-05,43253.0,43252.0,2.79697952]
[1642261334421,8.595e-05,43253.0,43252.0,2.21265852]
[1642261335824,8.595e-05,43253.0,43252.0,2.79694388]
[1642261336478,0.00174722,43258.0,43253.0,2.65]
[1642261336676,0.001,43274.0,43258.0,2.65]
[1642261336877,0.001,43285.0,43273.0,0.00128791]
[1642261337077,0.010264,43287.0,43278.0,0.00124394]
[1642261337279,0.010264,43287.0,43278.0,0.04754394]
[1642261337674,0.010264,43287.0,43286.0,1.35831425]
[1642261337875,0.010264,43287.0,43286.0,1.46944925]
[1642261338274,0.001,43287.0,43286.0,1.46944925]
[1642261338476,0.00047831,43289.0,43287.0,2.911117]
[1642261338780,0.00328164,43298.0,43292.0,0.00122524]
[1642261338981,0.9882409,43304.0,43292.0,0.00122524]
[1642261338982,0.9882409,43304.0,43303.0,1.48766469]
[1642261339183,0.9882409,43304.0,43303.0,0.28666469]
[1642261339377,0.9882409,43304.0,43303.0,0.58028607]
[1642261339576,0.9882409,43304.0,43303.0,0.28787376]
[1642261339829,0.9882409,43304.0,43303.0,1.23787376]
[1642261340128,0.9882409,43304.0,43303.0,0.28787376]
[1642261340728,0.9882409,43304.0,43303.0,0.38787376]
[1642261340931,0.001,43319.0,43303.0,1.93787376]
[1642261341128,0.001,43319.0,43305.0,1.61226394]
[1642261341333,0.33083052,43314.0,43305.0,1.61226394]
[1642261341533,0.001,43319.0,43305.0,1.71226394]
[1642261341730,0.3024763,43315.0,43305.0,1.71226394]
[1642261342132,0.3024763,43315.0,43305.0,0.36226394]
[1642261342330,0.3024763,43315.0,43305.0,0.26226394]
[1642261342531,0.3024763,43315.0,43305.0,0.260981]
[1642261343133,0.00124269,43318.0,43307.0,2.65]
[1642261343134,0.000926,43311.0,43307.0,2.65]
[1642261343335,0.000926,43311.0,43310.0,2.91221119]
[1642261343572,0.001,43319.0,43313.0,0.260922]
[1642261343772,0.001,43319.0,43313.0,0.0463]
[1642261344774,0.001,43319.0,43314.0,0.260908]
[1642261345073,0.001,43319.0,43316.0,0.00125094]
[1642261345275,0.001,43319.0,43317.0,0.260888]
[1642261345473,0.001,43319.0,43307.0,0.21310744]
[1642261345672,0.27982877,43317.0,43309.0,0.00127786]
[1642261345874,0.27982877,43317.0,43310.0,0.260937]
[1642261345875,0.24754967,43316.0,43310.0,0.260937]
[1642261346073,0.24754967,43316.0,43309.0,0.00127786]
[1642261346074,0.24863265,43316.0,43309.0,0.00127786]
[1642261346272,0.24863265,43316.0,43304.0,2.65072157]
[1642261346273,0.36375423,43310.0,43304.0,2.65072157]
[1642261346476,0.24863265,43316.0,43305.0,0.260969]
[1642261346672,0.157744,43324.0,43323.0,8.08653982]
[1642261346872,0.54404164,43324.0,43323.0,8.08653982]
[1642261347070,0.28629764,43324.0,43323.0,7.06653982]
[1642261347320,2.98904164,43324.0,43323.0,4.9256384]
[1642261347525,2.98904164,43324.0,43310.0,0.00048001]
[1642261347526,3.08777859,43324.0,43310.0,0.00048001]
[1642261347723,0.38288014,43311.0,43300.0,0.32802096]
[1642261347923,0.33288014,43311.0,43304.0,0.26856534]
[1642261348319,0.33288014,43311.0,43305.0,0.00018909]
[1642261348521,0.1,43314.0,43308.0,0.25961138]
[1642261348921,0.052744,43312.0,43309.0,0.00012033]
[1642261349126,0.421499,43311.0,43309.0,0.00105376]
[1642261349522,0.421499,43311.0,43310.0,0.00010314]
[1642261349722,1.071499,43311.0,43310.0,0.00010314]
[1642261349921,1.071499,43311.0,43309.0,3.657e-05]
[1642261349922,1.45,43310.0,43309.0,3.657e-05]
[1642261350124,1.03446319,43309.0,43298.0,0.26470639]
[1642261350322,0.099044,43308.0,43307.0,0.0003782]
[1642261350524,0.474243,43308.0,43307.0,0.0003782]
[1642261350974,0.9207537,43308.0,43307.0,0.0003782]
[1642261351376,0.9207537,43308.0,43299.0,0.00018909]
[1642261351679,0.152744,43303.0,43298.0,0.00020628]
[1642261351875,0.421499,43302.0,43298.0,0.00020628]
[1642261352074,0.702744,43299.0,43298.0,0.00020628]
[1642261352275,1.124243,43299.0,43298.0,0.00020628]
[1642261352471,1.51767847,43299.0,43298.0,0.00020628]
[1642261352974,0.474243,43299.0,43298.0,0.00020628]
[1642261353173,0.421499,43299.0,43298.0,0.00020628]
[1642261353575,0.421499,43299.0,43297.0,0.11139871]
[1642261353576,0.0002,43298.0,43297.0,4.99e-06]
[1642261353782,0.421699,43298.0,43296.0,0.00093449]
[1642261353978,0.421699,43298.0,43269.0,0.9198]
[1642261353979,1.25,43296.0,43283.0,0.30165561]
[1642261354179,0.052744,43285.0,43279.0,1.11096363]
[1642261354375,0.052744,43288.0,43284.0,0.00024067]
[1642261354575,0.152744,43288.0,43284.0,0.00024067]
[1642261354836,0.0463,43291.0,43281.0,0.00029224]
[1642261355032,0.1,43293.0,43282.0,0.047256]
[1642261355033,0.0463,43290.0,43282.0,0.047256]
[1642261355234,0.79073856,43292.0,43289.0,0.32887444]
[1642261355431,0.79073856,43292.0,43289.0,0.38762952]
[1642261355432,0.375199,43291.0,43289.0,0.38762952]
[1642261355631,0.375199,43291.0,43290.0,0.00013752]
[1642261355831,0.421499,43291.0,43290.0,0.00013752]
[1642261356630,0.32577117,43291.0,43290.0,0.00013752]
[1642261357232,0.32577117,43291.0,43281.0,0.00029224]
[1642261357532,0.25731861,43291.0,43285.0,0.047256]
[1642261357735,0.21101861,43291.0,43281.0,0.00029224]
[1642261357934,0.21101861,43291.0,43290.0,0.047256]
[1642261358133,0.21101861,43291.0,43287.0,0.00129158]
[1642261358333,0.79073856,43296.0,43290.0,0.75013752]
[1642261358580,0.79073856,43300.0,43290.0,0.29660411]
[1642261358780,0.36315255,43298.0,43291.0,0.00012033]
[1642261358981,0.375156,43297.0,43291.0,0.00012033]
[1642261359179,0.79073856,43300.0,43295.0,0.047256]
[1642261359386,0.17442738,43300.0,43295.0,0.047256]
[1642261359778,0.17442738,43300.0,43294.0,0.00093453]
[1642261360179,0.79073856,43302.0,43294.0,0.00093453]
[1642261360378,1.34921366,43303.0,43295.0,0.047256]
[1642261360579,0.375156,43302.0,43296.0,0.14680375]
[1642261360779,0.37522476,43302.0,43296.0,0.14680375]
[1642261360979,0.500348,43302.0,43296.0,0.14680375]
[1642261361179,0.37522476,43302.0,43296.0,0.14680375]
[1642261361680,0.17442738,43301.0,43296.0,0.14680375]
[1642261361984,0.375156,43300.0,43297.0,0.13631107]
[1642261363331,0.17442738,43299.0,43297.0,0.13631107]
[1642261363531,0.375156,43298.0,43297.0,0.13631107]
[1642261364232,0.54958338,43298.0,43297.0,0.13631107]
[1642261366278,0.54958338,43298.0,43297.0,0.44889596]
[1642261367578,0.54958338,43298.0,43297.0,0.49615196]
[1642261367782,0.17442738,43298.0,43297.0,0.49615196]
[1642261368581,0.17442738,43298.0,43297.0,1.70887779]
[1642261368780,0.17442738,43298.0,43297.0,2.06563879]
[1642261368980,0.17442738,43298.0,43297.0,1.92932772]
[1642261369182,0.0006524,43298.0,43297.0,1.92932772]
[1642261369382,6.876e-05,43302.0,43297.0,1.92932772]
[1642261369581,6.876e-05,43302.0,43301.0,0.947256]
[1642261369841,6.876e-05,43302.0,43301.0,1.36171829]
[1642261370442,6.876e-05,43302.0,43301.0,1.36298699]
[1642261370649,6.876e-05,43302.0,43301.0,2.71298699]
[1642261371441,6.876e-05,43302.0,43301.0,3.06298699]
[1642261371642,8.76e-06,43302.0,43301.0,3.16298699]
[1642261371844,8.76e-06,43302.0,43301.0,2.80298699]
[1642261372041,8.76e-06,43302.0,43301.0,2.80420766]
[1642261372242,0.0007007,43305.0,43301.0,2.80420766]
[1642261372444,0.0007007,43305.0,43304.0,2.80395]
[1642261372646,0.0007007,43305.0,43304.0,2.80522863]
[1642261372843,0.79073856,43316.0,43305.0,0.05773172]
[1642261373143,0.79073856,43316.0,43311.0,0.60091259]
[1642261373144,0.00280254,43313.0,43311.0,0.60091259]
[1642261373478,0.00280254,43313.0,43312.0,0.047256]
[1642261373680,0.00280254,43313.0,43310.0,0.047256]
[1642261373980,0.00018909,43313.0,43310.0,0.047256]
[1642261374381,0.00018909,43313.0,43311.0,0.25814996]
[1642261375781,0.00018909,43313.0,43310.0,0.047256]
[1642261376784,0.00018909,43313.0,43305.0,0.30852791]
[1642261376980,0.00018909,43313.0,43304.0,0.047256]
[1642261376981,0.39527322,43307.0,43304.0,0.047256]
[1642261377433,6.876e-05,43306.0,43304.0,0.047256]
[1642261377628,6.876e-05,43306.0,43305.0,0.356674]
[1642261377834,1.862483,43329.0,43309.0,3.32677028]
[1642261378031,0.5956,43329.0,43313.0,0.00129928]
[1642261378230,6.876e-05,43315.0,43313.0,0.00129928]
[1642261378429,6.876e-05,43315.0,43314.0,0.67108406]
[1642261379228,6.876e-05,43315.0,43314.0,0.91421542]
[1642261382483,6.876e-05,43315.0,43314.0,1.46421542]
[1642261382683,6.876e-05,43315.0,43314.0,0.91421542]
[1642261382882,6.876e-05,43315.0,43314.0,0.97193542]
[1642261383483,6.876e-05,43315.0,43314.0,0.91421542]
[1642261383785,6.876e-05,43315.0,43314.0,1.15358098]
[1642261383984,8.76e-06,43315.0,43314.0,0.70092856]
[1642261384187,6.76e-06,43317.0,43316.0,0.356577]
[1642261384384,6.76e-06,43317.0,43316.0,0.79669897]
[1642261384585,0.00346616,43328.0,43316.0,0.66828449]
[1642261384834,0.002,43335.0,43327.0,1.78775286]
[1642261385030,0.002,43335.0,43327.0,2.36902386]
[1642261385232,0.002,43335.0,43330.0,1.297256]
[1642261385430,0.002,43335.0,43331.0,0.356428]
[1642261386030,1.37467761,43341.0,43332.0,0.55]
[1642261386232,0.0006754,43342.0,43337.0,0.047256]
[1642261386433,0.375156,43341.0,43337.0,0.047256]
[1642261386632,0.375156,43341.0,43336.0,0.047256]
[1642261386832,0.00042975,43340.0,43334.0,0.047256]
[1642261387234,0.00041256,43339.0,43334.0,0.63651029]
[1642261387433,0.00041256,43339.0,43337.0,0.047256]
[1642261387632,0.00039537,43338.0,43337.0,0.047256]
[1642261387833,0.00039537,43338.0,43334.0,0.33958036]
[1642261388036,0.00039537,43338.0,43337.0,0.047256]
[1642261388235,0.37660129,43342.0,43337.0,0.047256]
[1642261388482,0.375156,43341.0,43339.0,0.047256]
[1642261388686,0.37560294,43341.0,43339.0,0.047256]
[1642261388881,0.00042975,43340.0,43339.0,0.047256]
[1642261393441,0.00042975,43340.0,43339.0,0.23796789]
[1642261394039,0.002,43349.0,43340.0,2.05]
[1642261394239,0.002,43349.0,43347.0,0.047256]
[1642261394438,0.002,43349.0,43347.0,0.33467808]
[1642261394639,0.001,43348.0,43347.0,0.33467808]
[1642261396097,0.001,43348.0,43347.0,0.72640453]
[1642261396286,3.66119678,43350.0,43348.0,1.5846063]
[1642261396687,3.66119678,43350.0,43347.0,0.72640453]
[1642261396688,0.72222316,43350.0,43349.0,3.20302091]
[1642261396888,0.70822316,43350.0,43349.0,3.55928591]
[1642261397085,0.70822316,43350.0,43349.0,3.31545443]
[1642261397086,0.69439506,43350.0,43349.0,3.31545443]
[1642261397286,0.68839506,43350.0,43349.0,3.31545443]
[1642261397491,0.00079078,43359.0,43356.0,0.00120331]
[1642261397688,0.00079078,43359.0,43358.0,2.69849435]
[1642261397890,1.2705232,43373.0,43360.0,0.00120308]
[1642261398088,0.9884232,43373.0,43360.0,2.65734708]
[1642261398489,0.24383148,43372.0,43360.0,0.35734708]
[1642261398795,0.00227915,43376.0,43367.0,0.00129316]
[1642261399191,0.00058862,43368.0,43367.0,0.00129316]
[1642261399395,0.04071177,43374.0,43364.0,0.00120595]
[1642261399591,0.04071177,43368.0,43364.0,0.00120595]
[1642261399841,0.25831061,43364.0,43358.0,0.00083107]
[1642261400038,0.24383148,43363.0,43358.0,0.00083107]
[1642261400237,0.29902238,43364.0,43359.0,0.00015471]
[1642261400539,0.1,43360.0,43359.0,0.00015471]
[1642261400737,0.25831061,43364.0,43359.0,0.00015471]
[1642261401138,0.0463,43366.0,43359.0,0.00015471]
[1642261401536,0.0463,43366.0,43364.0,0.05928823]
[1642261401736,0.0463,43366.0,43359.0,0.00015471]
[1642261401737,0.61898748,43365.0,43359.0,0.00015471]
[1642261401938,0.04071177,43362.0,43359.0,0.00015471]
[1642261402139,0.421456,43361.0,43359.0,0.00015471]
[1642261402336,0.416456,43361.0,43359.0,0.00015471]
[1642261402537,0.0463,43361.0,43359.0,0.00015471]
[1642261402739,0.44880875,43360.0,43359.0,0.00015471]
[1642261402938,0.49510875,43360.0,43359.0,0.00015471]
[1642261403137,0.55279775,43360.0,43359.0,0.00015471]
[1642261403337,0.0463,43360.0,43359.0,0.00015471]
[1642261404381,0.8805176,43360.0,43359.0,0.00015471]
[1642261404583,0.9805176,43360.0,43359.0,0.00015471]
[1642261405982,1.29995367,43360.0,43359.0,0.00015471]
[1642261406181,0.9805176,43360.0,43359.0,0.00015471]
[1642261407731,0.9805176,43360.0,43359.0,0.00021471]
[1642261407930,0.9755176,43360.0,43359.0,0.00021471]
[1642261408131,1.27925563,43360.0,43359.0,0.00021471]
[1642261408931,1.85825563,43360.0,43359.0,0.00021471]
[1642261409135,1.85825563,43360.0,43359.0,0.00097148]
[1642261410986,1.5545176,43360.0,43359.0,0.00097148]
[1642261412082,2.5545176,43360.0,43359.0,0.00097148]
[1642261412282,2.5545176,43360.0,43359.0,0.00025148]
[1642261412283,2.59522937,43360.0,43359.0,0.00025148]
[1642261412483,1.557703,43359.0,43346.0,0.31288777]
[1642261412783,1.557703,43359.0,43341.0,0.05928823]
[1642261412784,0.40327573,43346.0,43341.0,0.05928823]
[1642261412982,0.0463,43345.0,43341.0,0.05928823]
[1642261413181,0.0463,43345.0,43342.0,0.00029224]
[1642261413582,0.0463,43345.0,43343.0,0.27316487]
[1642261413982,0.0463,43345.0,43344.0,0.40025786]
[1642261414188,0.0463,43345.0,43344.0,0.45954609]
[1642261414381,0.0463,43345.0,43344.0,0.05954609]
[1642261414583,0.28008795,43345.0,43344.0,0.05954609]
[1642261414835,0.65510295,43345.0,43344.0,0.05954609]
[1642261415433,0.421315,43345.0,43344.0,0.05954609]
[1642261415730,0.0463,43345.0,43344.0,0.05954609]
[1642261415930,0.1463,43345.0,43344.0,0.05954609]
[1642261416930,0.1463,43345.0,43344.0,0.00025786]
[1642261417130,0.0463,43345.0,43344.0,0.00025786]
[1642261417333,0.0463,43345.0,43343.0,0.00027505]
[1642261418335,0.0463,43345.0,43343.0,0.05956328]
[1642261418788,0.0463,43345.0,43344.0,0.00025786]
[1642261419186,0.0463,43345.0,43344.0,0.00073417]
[1642261419490,0.421315,43345.0,43344.0,0.00073417]
[1642261419688,0.521315,43345.0,43344.0,0.00073417]
[1642261420988,0.821315,43345.0,43344.0,0.00073417]
[1642261421188,0.521315,43345.0,43344.0,0.00073417]
[1642261421997,0.0008457,43360.0,43346.0,2.65]
[1642261422241,0.5,43359.0,43357.0,0.001292]
[1642261422444,0.5,43359.0,43358.0,1.26055173]
[1642261422637,0.0008457,43360.0,43358.0,1.55672574]
[1642261422838,0.0008457,43360.0,43359.0,0.37505]
[1642261423036,0.0008457,43360.0,43358.0,0.35672574]
[1642261423238,0.0008457,43360.0,43358.0,0.06055173]
[1642261423438,0.42983546,43364.0,43358.0,0.05928823]
[1642261423639,0.42983546,43364.0,43356.0,0.00077965]
[1642261423640,0.00084609,43361.0,43356.0,0.00077965]
[1642261423938,0.00084609,43361.0,43356.0,0.06006788]
[1642261424138,0.3061698,43361.0,43359.0,0.00062912]
[1642261424337,0.37505,43360.0,43359.0,0.00062912]
[1642261424542,0.47505,43360.0,43359.0,0.00062912]
[1642261424939,0.46365,43360.0,43359.0,0.00062912]
[1642261425140,0.50995,43360.0,43359.0,0.00062912]
[1642261425840,0.85995,43360.0,43359.0,0.00062912]
[1642261426480,0.50995,43360.0,43359.0,0.00062912]
[1642261427088,0.46365,43360.0,43359.0,0.00062912]
[1642261427982,0.76365,43360.0,43359.0,0.00062912]
[1642261428183,2.52160384,43360.0,43359.0,2.912e-05]
[1642261428386,2.56790384,43360.0,43359.0,2.912e-05]
[1642261428583,1.06790384,43360.0,43359.0,2.912e-05]
[1642261428983,1.12559784,43360.0,43359.0,2.912e-05]
[1642261429183,1.12559784,43360.0,43359.0,0.00041207]
[1642261429383,1.40181118,43360.0,43359.0,0.00041207]
[1642261429834,1.60251118,43360.0,43359.0,0.00041207]
[1642261430433,1.30251118,43360.0,43359.0,0.00041207]
[1642261430636,1.34322295,43360.0,43359.0,0.00041207]
[1642261430836,1.510803,43357.0,43356.0,3.56e-05]
[1642261431034,0.457103,43357.0,43356.0,3.56e-05]
[1642261431238,0.73933046,43357.0,43356.0,3.56e-05]
[1642261431435,0.79703046,43357.0,43356.0,3.56e-05]
[1642261431637,1.25157335,43357.0,43356.0,3.56e-05]
[1642261431837,0.79703046,43357.0,43348.0,0.05928823]
[1642261432142,0.35,43351.0,43339.0,0.05928823]
[1642261432337,0.0463,43350.0,43339.0,0.05928823]
[1642261432535,0.0463,43350.0,43340.0,0.00012033]
[1642261433034,0.0463,43350.0,43343.0,0.05928823]
[1642261433035,0.24827261,43345.0,43343.0,0.05928823]
[1642261433238,0.34672463,43344.0,43343.0,0.05928823]
[1642261433483,0.72169563,43344.0,43343.0,0.05928823]
[1642261433683,0.82169563,43344.0,43343.0,0.05935699]
[1642261434184,0.82169563,43344.0,43343.0,6.876e-05]
[1642261434387,1.10651406,43344.0,43343.0,6.876e-05]
[1642261434584,1.05040015,43344.0,43343.0,6.876e-05]
[1642261434985,0.34031748,43336.0,43332.0,0.00126748]
[1642261435185,0.34031748,43336.0,43333.0,0.374971]
[1642261435384,0.34031748,43336.0,43333.0,0.0001719]
[1642261435985,0.27139138,43335.0,43333.0,0.0001719]
[1642261436887,0.26241532,43334.0,43333.0,0.0001719]
[1642261437091,0.69510932,43334.0,43333.0,0.0001719]
[1642261437357,0.70590887,43334.0,43333.0,0.0001719]
[1642261437553,0.77687433,43334.0,43333.0,0.0001719]
[1642261438153,0.532694,43334.0,43331.0,0.00084056]
[1642261438354,0.299494,43333.0,43332.0,0.00018909]
[1642261438753,0.30445405,43338.0,43332.0,0.00018909]
[1642261438754,0.00120056,43339.0,43332.0,0.00018909]
[1642261438958,0.903,43350.0,43335.0,0.00128746]
[1642261439153,0.5945,43350.0,43341.0,0.00120188]
[1642261439354,0.37521814,43349.0,43341.0,0.00120188]
[1642261439753,0.29178169,43348.0,43341.0,0.00120188]
[1642261439957,0.37250908,43346.0,43336.0,0.00012033]
[1642261440156,0.294328,43345.0,43336.0,0.00012033]
[1642261440455,0.294328,43345.0,43339.0,0.00086941]
[1642261441489,0.43562456,43338.0,43335.0,0.00013752]
[1642261441884,0.53562456,43338.0,43335.0,0.00013752]
[1642261442286,0.53562456,43338.0,43330.0,0.00022347]
[1642261442492,0.53562456,43338.0,43331.0,0.375115]
[1642261442493,0.52562456,43338.0,43331.0,0.375115]
[1642261442685,0.52562456,43338.0,43332.0,0.00086949]
[1642261442886,0.52562456,43338.0,43332.0,0.00105858]
[1642261443687,0.52562456,43338.0,43332.0,0.00018909]
[1642261443885,0.52562456,43338.0,43333.0,0.00084996]
[1642261444287,6.876e-05,43347.0,43334.0,0.00015471]
[1642261444942,6.876e-05,43347.0,43337.0,0.05769139]
[1642261445144,6.876e-05,43347.0,43338.0,0.00084989]
[1642261445343,6.876e-05,43347.0,43339.0,0.40593777]
[1642261445541,6.876e-05,43347.0,43339.0,0.40600653]
[1642261445742,6.876e-05,43347.0,43339.0,6.876e-05]
[1642261446242,0.33325332,43345.0,43339.0,6.876e-05]
[1642261446444,0.33325332,43345.0,43341.0,0.00084987]
[1642261446743,0.34256086,43344.0,43341.0,0.00084987]
[1642261446942,0.45931841,43343.0,43341.0,0.00084987]
[1642261447144,0.34256086,43344.0,43342.0,0.00121406]
[1642261448143,0.28479101,43343.0,43342.0,0.00121406]
[1642261448341,0.64941911,43343.0,43342.0,0.00121406]
[1642261448587,0.3646281,43343.0,43342.0,0.00121406]
[1642261448786,6.876e-05,43347.0,43342.0,0.00121406]
[1642261449590,6.876e-05,43347.0,43343.0,0.375115]
[1642261449787,6.876e-05,43347.0,43342.0,0.00121406]
[1642261449987,6.876e-05,43347.0,43342.0,0.00207647]
[1642261450686,6.876e-05,43347.0,43342.0,0.00086241]
[1642261450889,6.876e-05,43347.0,43338.0,8.595e-05]
[1642261451086,6.876e-05,43347.0,43342.0,0.00086241]
[1642261451486,0.32305311,43343.0,43342.0,0.00086241]
[1642261451786,0.32305311,43343.0,43342.0,0.37597741]
[1642261451987,0.65765826,43343.0,43342.0,0.00086241]
[1642261452234,0.65765826,43343.0,43338.0,8.595e-05]
[1642261452439,0.13255791,43342.0,43340.0,0.00086282]
[1642261452637,0.33370543,43341.0,43340.0,0.00086282]
[1642261453039,0.43370543,43341.0,43340.0,0.00086282]
[1642261453536,0.43370543,43341.0,43338.0,0.00086284]
[1642261453537,0.70882043,43341.0,43338.0,0.00086284]
[1642261453735,0.294328,43340.0,43338.0,0.00086284]
[1642261453936,0.33370543,43341.0,43339.0,6.876e-05]
[1642261454136,0.375115,43340.0,43339.0,6.876e-05]
[1642261454736,0.75739971,43340.0,43339.0,6.876e-05]
[1642261454939,0.75739971,43340.0,43337.0,0.00086275]
[1642261455139,0.00128652,43339.0,43338.0,8.595e-05]
[1642261455338,0.62135048,43339.0,43338.0,8.595e-05]
[1642261455643,0.72135048,43339.0,43338.0,8.595e-05]
[1642261455838,0.77906848,43339.0,43338.0,8.595e-05]
[1642261456283,0.77906848,43339.0,43336.0,0.00086276]
[1642261456483,0.77906848,43339.0,43337.0,0.00010314]
[1642261456683,0.27604164,43338.0,43337.0,0.00010314]
[1642261456883,0.65115664,43338.0,43337.0,0.00010314]
[1642261457083,0.75115664,43338.0,43337.0,0.00010314]
[1642261457283,0.75115664,43338.0,43335.0,0.00086277]
[1642261457284,0.80887864,43338.0,43335.0,0.00086277]
[1642261457483,1.194328,43337.0,43336.0,0.00012033]
[1642261457685,1.294328,43337.0,43336.0,0.00012033]
[1642261458290,0.394328,43337.0,43336.0,0.00012033]
[1642261458485,0.70180091,43337.0,43336.0,0.00012033]
[1642261458684,0.70180091,43337.0,43335.0,0.00013752]
[1642261458885,0.70940169,43336.0,43335.0,0.00013752]
[1642261459085,1.18451669,43336.0,43335.0,0.00013752]
[1642261459486,1.94515148,43336.0,43335.0,0.00013752]
[1642261459744,1.59515148,43336.0,43335.0,0.00013752]
[1642261460050,1.59515148,43336.0,43334.0,0.00015471]
[1642261460244,1.69930962,43335.0,43334.0,0.00015471]
[1642261460644,0.69930962,43335.0,43334.0,0.00015471]
[1642261461044,0.69930962,43335.0,43332.0,0.00086284]
[1642261461346,0.66684123,43333.0,43332.0,0.00086284]
[1642261461544,1.40216967,43333.0,43332.0,0.00086284]
[1642261461844,1.40216967,43333.0,43332.0,0.00018909]
[1642261462243,1.40216967,43333.0,43330.0,0.00086287]
[1642261462444,0.294328,43332.0,43331.0,0.00020628]
[1642261462644,0.53507529,43332.0,43331.0,0.00020628]
[1642261463046,0.63507529,43332.0,43331.0,0.00020628]
[1642261463246,0.394328,43332.0,43331.0,0.00020628]
[1642261463489,0.394328,43332.0,43329.0,0.00086287]
[1642261463688,0.394328,43332.0,43330.0,0.00022347]
[1642261464489,0.394328,43332.0,43329.0,0.00086288]
[1642261464691,0.68512789,43332.0,43330.0,0.00022347]
[1642261464890,0.452056,43332.0,43330.0,0.00022347]
[1642261465590,0.68519562,43332.0,43330.0,0.00022347]
[1642261465790,0.452056,43332.0,43329.0,0.00086289]
[1642261466098,0.45,43331.0,43330.0,0.00022347]
[1642261466291,0.375115,43331.0,43330.0,0.00022347]
[1642261466491,0.475115,43331.0,43330.0,0.00022347]
[1642261466891,0.475115,43331.0,43328.0,0.0008629]
[1642261467092,0.294328,43330.0,43328.0,0.0008629]
[1642261467336,0.294328,43330.0,43329.0,0.00024066]
[1642261467536,0.65206569,43330.0,43329.0,0.00024066]
[1642261467936,0.75206569,43330.0,43329.0,0.00024066]
[1642261468137,0.75206569,43330.0,43327.0,0.00086291]
[1642261468435,0.75206569,43330.0,43328.0,0.00025785]
[1642261468436,1.00474898,43330.0,43328.0,0.00025785]
[1642261469439,1.00474898,43330.0,43327.0,0.00086291]
[1642261469639,2.144328,43328.0,43327.0,0.00086291]
[1642261469838,2.190628,43328.0,43327.0,0.00086291]
[1642261470038,2.290628,43328.0,43327.0,0.00113795]
[1642261470237,0.440628,43328.0,43327.0,0.00027504]
[1642261470437,1.390628,43328.0,43327.0,0.00027504]
[1642261470637,0.27950837,43327.0,43325.0,0.00086293]
[1642261470838,0.375115,43326.0,43325.0,0.00086293]
[1642261471088,0.532854,43326.0,43325.0,0.00077664]
[1642261471291,0.532854,43326.0,43325.0,0.00030942]
[1642261471485,0.929154,43326.0,43325.0,0.00030942]
[1642261471687,1.24343134,43326.0,43314.0,0.00049851]
[1642261471885,1.24343134,43326.0,43313.0,0.0005157]
[1642261471886,0.25467394,43319.0,43313.0,0.0005157]
[1642261472086,0.25467394,43319.0,43312.0,0.00053289]
[1642261472286,0.23940568,43318.0,43312.0,0.00053289]
[1642261472587,0.39598435,43313.0,43312.0,0.00053289]
[1642261473187,0.77109935,43313.0,43306.0,0.57106827]
[1642261473387,0.39598435,43313.0,43306.0,0.57043224]
[1642261473685,0.39598435,43313.0,43307.0,0.00061884]
[1642261473889,0.39598435,43313.0,43307.0,0.00155321]
[1642261474086,0.29663025,43316.0,43307.0,0.00155321]
[1642261474285,0.29663025,43316.0,43308.0,0.00060165]
[1642261475150,0.29663025,43316.0,43310.0,0.00093434]
[1642261475348,0.29663025,43316.0,43312.0,2.73681913]
[1642261475748,0.29663025,43316.0,43313.0,0.0005157]
[1642261475948,0.375115,43315.0,43313.0,0.0005157]
[1642261476149,0.475115,43315.0,43311.0,0.00055008]
[1642261476348,0.475115,43315.0,43312.0,0.00093432]
[1642261476749,0.475115,43315.0,43313.0,0.0005157]
[1642261477751,0.475115,43315.0,43312.0,0.00093432]
[1642261477949,0.475115,43315.0,43313.0,0.0005157]
[1642261478149,0.1,43315.0,43313.0,0.0005157]
[1642261478588,0.25467394,43319.0,43313.0,0.0005157]
[1642261478789,0.375115,43318.0,43313.0,0.0005157]
[1642261478989,0.34141954,43316.0,43312.0,0.00093432]
[1642261479194,0.44141954,43316.0,43313.0,0.0005157]
[1642261479391,0.375115,43315.0,43313.0,0.0005157]
[1642261479692,0.475115,43315.0,43313.0,0.0005157]
[1642261481391,0.475115,43315.0,43312.0,0.00093432]
[1642261481699,0.1,43315.0,43313.0,0.0005157]
[1642261482091,0.34141954,43316.0,43313.0,0.0005157]
[1642261482346,0.00121089,43329.0,43313.0,0.0005157]
[1642261482543,0.00121089,43329.0,43312.0,0.00219839]
[1642261482544,0.375115,43328.0,43312.0,0.00219839]
[1642261482745,0.51960962,43329.0,43313.0,0.0005157]
[1642261482942,0.27539081,43328.0,43313.0,0.0005157]
[1642261483142,0.32192612,43323.0,43313.0,0.0005157]
[1642261483343,0.28618054,43321.0,43313.0,0.77554508]
[1642261483543,0.32192612,43323.0,43316.0,0.00093428]
[1642261483943,0.32192612,43323.0,43317.0,0.00044694]
[1642261484544,0.3399584,43322.0,43317.0,0.00044694]
[1642261484743,0.3399584,43322.0,43318.0,0.00093425]